fUST/lending_fUST_20260221
["ID","MTS","AMOUNT","RATE_DAILY","PERIOD"]
[406278010,1771684445858,-269.63830084,0.00041498,30]
[406278011,1771684445881,-623.00811293,0.00041498,20]
[406278012,1771684445902,-292.68355673,0.00041498,120]
[406278013,1771684445927,-1708.35081696,0.00041498,120]
[406278014,1771684445951,-253.67385422,0.00041498,120]
[406278015,1771684445975,-204.83267941,0.00041498,120]
[406278016,1771684445998,-14713.53,0.00041498,120]
[406278017,1771684446023,-264.55401937,0.00041498,120]
[406278018,1771684446055,-264.55401937,0.00041498,120]
[406278019,1771684446081,-264.55401937,0.00041498,120]
[406278020,1771684446105,-264.55401937,0.00041498,120]
[406278021,1771684446128,-264.55401937,0.00041498,120]
[406278022,1771684446151,-264.55401937,0.00041498,120]
[406278023,1771684446175,-264.55401937,0.00041498,120]
[406278024,1771684446199,-264.55401937,0.00041498,120]
[406278025,1771684446223,-5157.0,0.00041498,60]
[406278026,1771684446246,-5000.0,0.00041498,30]
[406278027,1771684446388,-1118.0,0.00041498,30]
[406278028,1771684446417,-202.98668337,0.00041498,120]
[406278029,1771684446451,-202.98668337,0.00041498,120]
[406278030,1771684446474,-254.73587501,0.00041498,120]
[406278031,1771684446496,-7999.999999,0.00041498,120]
[406278032,1771684446517,-17504.51416901,0.00041498,30]
[406278033,1771684446541,-221.08031039,0.00041498,120]
[406278034,1771684446563,-329.1886193,0.00041498,120]
[406278035,1771684446585,-225.85616326,0.00041498,120]
[406278036,1771684446609,-150.34856506,0.00041498,120]
[406278037,1771684446631,-191.75270633,0.00041498,120]
[406278038,1771684446654,-180.5484311,0.00041498,120]
[406278039,1771684446677,-284.40251332,0.00041498,120]
[406278040,1771684446699,-225.85616326,0.00041498,120]
[406278041,1771684446722,-180.5484311,0.00041498,120]
[406278042,1771684446743,-225.85616326,0.00041498,120]
[406278043,1771684446766,-180.5484311,0.00041498,120]
[406278044,1771684446789,-180.5484311,0.00041498,120]
[406278045,1771684446812,-180.5484311,0.00041498,120]
[406278046,1771684446836,-180.5484311,0.00041498,120]
[406278047,1771684446860,-180.5484311,0.00041498,120]
[406278048,1771684446888,-180.5484311,0.00041498,120]
[406278049,1771684446912,-150.34856505,0.00041498,120]
[406278050,1771684446934,-26192.0,0.00041498,31]
[406278051,1771684446957,-10000.0,0.00041498,31]
[406278052,1771684446980,-179.09009097,0.00041498,120]
[406278053,1771684447003,-179.09009097,0.00041498,120]
[406278054,1771684447027,-179.09009097,0.00041498,120]
[406278055,1771684447050,-179.09009097,0.00041498,120]
[406278056,1771684447073,-179.09009097,0.00041498,120]
[406278057,1771684447095,-179.09009097,0.00041498,120]
[406278058,1771684447117,-179.09009097,0.00041498,120]
[406278059,1771684447140,-179.09009093,0.00041498,120]
[406278060,1771684447162,-368.0,0.00041498,30]
[406278061,1771684447184,-50000.0,0.00041498,30]
[406278062,1771684447206,-256.62351658,0.00041498,120]
[406278063,1771684447312,4715.32725689,0.00041498,20]
[406278064,1771684448564,429.0,0.00041498,20]
[406278072,1771684537500,-30671.58950443,0.00026,30]
[406278073,1771684537529,-192.668,0.00031849,30]
[406278074,1771684537555,-151.0,0.00036206,40]
[406278075,1771684537578,-194.27,0.00037,30]
[406278076,1771684537602,-1262.02,0.00038356,120]
[406278077,1771684537625,-1262.02,0.00039315,120]
[406278078,1771684537648,-151.0,0.0004,120]
[406278079,1771684537671,-210.79,0.0004,30]
[406278080,1771684537693,-1208.12,0.0004,30]
[406278081,1771684537716,-1562.5,0.0004,30]
[406278082,1771684537740,-1262.02,0.00040273,120]
[406278083,1771684537763,-194.27,0.000412,30]
[406278084,1771684537786,-1262.02,0.00041232,120]
[406278085,1771684537809,-301.6457,0.00041498,120]
[406278086,1771684537836,-504.52,0.00041516,120]
[406278087,1771684537861,-297.16,0.00041917,30]
[406278088,1771684537884,-200.0,0.00042,120]
[406278089,1771684537908,-210.79,0.00042,30]
[406278090,1771684537932,-1208.12,0.00042,30]
[406278091,1771684537959,-1562.5,0.00042,30]
[406278092,1771684537983,-504.52,0.00042189,120]
[406278093,1771684538006,-1262.02,0.00042191,120]
[406278094,1771684538035,-297.16,0.00042602,33]
[406278095,1771684538061,-504.52,0.00042862,120]
[406278096,1771684538087,-300.0,0.00043,120]
[406278097,1771684538113,-1262.02,0.0004315,120]
[406278098,1771684538138,-297.16,0.00043287,36]
[406278099,1771684538164,-22120.2346438,0.000435,120]
[406278100,1771684538191,-504.52,0.00043535,120]
[406278101,1771684538312,-500.0,0.00043835,80]
[406278102,1771684538368,-200.0,0.00043836,120]
[406278103,1771684538397,-297.16,0.00043972,39]
[406278104,1771684538424,-300.0,0.00044,120]
[406278105,1771684538454,-210.79,0.000441,30]
[406278106,1771684538480,-1208.12,0.000441,30]
[406278107,1771684538504,-1562.5,0.000441,30]
[406278108,1771684538530,-1262.02,0.00044109,120]
[406278109,1771684538555,-504.52,0.00044208,120]
[406278110,1771684538579,-297.16,0.00044657,42]
[406278111,1771684538603,-482.37694301,0.00044657,85]
[406278112,1771684538629,-277.35,0.00044837,30]
[406278113,1771684538659,-504.52,0.00044882,120]
[406278114,1771684538684,-65024.90167297,0.00045,120]
[406278115,1771684538708,-21962.0,0.00045,30]
[406278116,1771684538731,-501.0,0.00045,120]
[406278117,1771684538755,-300.0,0.00045,120]
[406278118,1771684538778,-20057.84482589,0.00045,30]
[406278119,1771684538801,-1262.02,0.00045068,120]
[406278120,1771684538824,-297.16,0.00045342,45]
[406278121,1771684538848,-504.52,0.00045555,120]
[406278122,1771684538874,-1384.33,0.00046,120]
[406278123,1771684538898,-300.0,0.00046,120]
[406278124,1771684538921,-297.16,0.00046027,48]
[406278125,1771684538945,-1262.02,0.00046027,120]
[406278126,1771684538968,-504.52,0.00046228,120]
[406278127,1771684538991,-1208.12,0.00046305,30]
[406278128,1771684539014,-1562.5,0.00046305,30]
[406278129,1771684539038,-294.54345789,0.00046466,120]
[406278130,1771684539061,-297.16,0.00046712,51]
[406278131,1771684539086,-504.52,0.00046901,120]
[406278132,1771684539111,-1262.02,0.00046986,120]
[406278133,1771684539135,-300.0,0.00047,120]
[406278134,1771684539160,-297.16,0.00047397,54]
[406278135,1771684539185,-504.52,0.00047574,120]
[406278136,1771684539209,-150.90328983,0.000479,120]
[406278137,1771684539234,-1262.02,0.00047945,120]
[406278138,1771684539259,-300.0,0.00048,120]
[406278139,1771684539285,-297.16,0.00048082,57]
[406278140,1771684539312,-504.52,0.00048247,120]
[406278141,1771684539339,-297.16,0.00048767,60]
[406278142,1771684539364,-1262.02,0.00048904,120]
[406278143,1771684539401,-504.52,0.0004892,120]
[406278144,1771684539447,-300.0,0.00049,120]
[406278145,1771684539481,-155.3,0.00049315,120]
[406278146,1771684539509,-210.80874996,0.000494,90]
[406278147,1771684539542,-297.16,0.00049452,63]
[406278148,1771684539572,-8571.49719711,0.000495,120]
[406278149,1771684539604,-504.52,0.00049593,120]
[406278150,1771684539632,-174.60371082,0.000496,120]
[406278151,1771684539662,-467.91840093,0.000498,120]
[406278152,1771684539692,-1262.02,0.00049863,120]
[406278153,1771684539721,-200.0,0.000499,120]
[406278154,1771684539753,-400.0,0.000499,120]
[406278155,1771684539781,-1000.0,0.0005,120]
[406278156,1771684539809,-1000.0,0.0005,120]
[406278157,1771684539835,-5123.5073547,0.0005,120]
[406278158,1771684539859,-10935.68849994,0.0005,120]
[406278159,1771684539885,-5030.575957,0.0005,90]
[406278160,1771684539911,-2814.41940079,0.0005,120]
[406278161,1771684539943,-156.0,0.0005,120]
[406278162,1771684539974,-478.79109174,0.0005,120]
[406278163,1771684540004,-236.0,0.0005,120]
[406278164,1771684540034,-2256.84,0.0005,60]
[406278165,1771684540064,-500.0,0.0005,30]
[406278166,1771684540093,-500.0,0.0005,30]
[406278167,1771684540119,-665.25,0.0005,30]
[406278168,1771684540149,-300.0,0.0005,120]
[406278169,1771684540181,-387.10647264,0.0005,120]
[406278170,1771684540211,-297.16,0.00050136,66]
[406278171,1771684540236,-194.27,0.000502,30]
[406278172,1771684540268,-504.52,0.00050267,120]
[406278173,1771684540295,-187.0,0.00050411,120]
[406278174,1771684540320,-297.16,0.00050821,69]
[406278175,1771684540347,-1262.02,0.00050821,120]
[406278176,1771684540373,-504.52,0.0005094,120]
[406278177,1771684540399,-1000.0,0.00051,120]
[406278178,1771684540425,-1500.0,0.00051,50]
[406278179,1771684540456,-1500.0,0.00051,50]
[406278180,1771684540481,-10000.0,0.00051,120]
[406278181,1771684540507,-300.0,0.00051,120]
[406278182,1771684540535,-51932.0,0.00051,120]
[406278183,1771684540562,-3000.0,0.00051,85]
[406278184,1771684540588,-3000.0,0.0005101,85]
[406278185,1771684540736,-3000.0,0.0005102,85]
[406278186,1771684540760,-3000.0,0.0005103,85]
[406278187,1771684540782,-3000.0,0.0005104,85]
[406278188,1771684540803,-3000.0,0.0005105,85]
[406278189,1771684540825,-3000.0,0.0005106,85]
[406278190,1771684540847,-5236.861643,0.0005107,85]
[406278191,1771684540871,-150.0,0.00051224,30]
[406278192,1771684540895,-156.0,0.000513,120]
[406278193,1771684540917,-430.56189393,0.000515,120]
[406278194,1771684540940,-297.16,0.00051506,72]
[406278195,1771684540965,-504.52,0.00051613,120]
[406278196,1771684540987,-367537.56313761,0.000517,120]
[406278197,1771684541010,-1262.02,0.0005178,120]
[406278198,1771684541034,-194.27,0.000518,30]
[406278199,1771684541056,-1000.0,0.00052,120]
[406278200,1771684541079,-10000.0,0.00052,120]
[406278201,1771684541101,-190.0,0.00052,120]
[406278202,1771684541124,-300.0,0.00052,120]
[406278203,1771684541148,-236.4715535,0.00052,120]
[406278204,1771684541176,3000.0,0.00051955,120]
[406278308,1771684692608,-15000.0,0.00041498,10]
[406278309,1771684692631,-1950.118295,0.00041498,15]
[406278310,1771684692654,-250.0,0.00041498,10]
[406278311,1771684692677,-250.0,0.00041498,10]
[406278312,1771684692699,-456.377114,0.00041498,10]
[406278313,1771684692721,-17999.979999,0.00041498,31]
[406278314,1771684692744,-209.38180784,0.00041498,118]
[406278315,1771684692846,2181.0,0.00041498,7]
[406278316,1771684692989,1497.0,0.00041498,7]
[406279859,1771685431546,-271.94309488,0.00013273,2]
[406279918,1771685437729,-230.92809392,0.00013273,2]
[406279920,1771685437741,-608.0,0.00013273,2]
[406279922,1771685437750,-28.3681824,0.00014,2]
[406279925,1771685437791,-123.81978092,0.00014,2]
[406279927,1771685437800,-500.0,0.00015599,2]
[406279929,1771685437809,-500.0,0.00016214,2]
[406279931,1771685437818,-1000.0,0.000163,2]
[406279933,1771685437827,-272.32249331,0.000178,2]
[406279935,1771685437838,-1539.38004294,0.000179,2]
[406280124,1771685440151,-102.52779897,0.000179,2]
[406280126,1771685440160,-300.0,0.00017989,2]
[406280127,1771685440169,-1200.0,0.00017989,2]
[406280129,1771685440179,-522.45284795,0.0001799,3]
[406280132,1771685440190,-252.94715205,0.0001799,3]
[406280134,1771685440199,-215.4,0.0001799,3]
[406280135,1771685440208,-646.2,0.0001799,3]
[406280137,1771685440217,-500.0,0.00017999,2]
[406280139,1771685440227,-500.0,0.00017999,2]
[406280141,1771685440236,-517.75960093,0.00017999,2]
[406280143,1771685440245,-155.24526421,0.00017999,2]
[406280145,1771685440254,-417.67739395,0.00017999,2]
[406280147,1771685440263,-500.0,0.00017999,2]
[406280149,1771685440272,-500.0,0.00017999,2]
[406280151,1771685440282,-500.0,0.00017999,2]
[406280153,1771685440291,-500.0,0.00017999,2]
[406280155,1771685440301,-500.0,0.00017999,2]
[406280157,1771685440310,-647.06311949,0.00017999,2]
[406280159,1771685440319,-500.0,0.00017999,2]
[406280161,1771685440328,-460.96158182,0.00017999,2]
[406280163,1771685440337,-170.39126548,0.00017999,2]
[406280165,1771685440346,-500.0,0.00017999,2]
[406280167,1771685440355,-388.41910847,0.00017999,2]
[406280169,1771685440364,-36550.40947894,0.00018,2]
[406280415,1771685442955,-3256.78985874,0.00018,2]
[406280417,1771685442966,-7109.7928184,0.00018,2]
[406280419,1771685442977,-790.99,0.00018,2]
[406280690,1771685445902,-500.0,0.00017,2]
[406280692,1771685445912,-6354.5,0.00018,2]
[406280693,1771685445923,-1075.6164,0.00018,2]
[406280822,1771686119542,-2045.44755481,0.00017721,2]
[406280826,1771686175200,151.0,7e-05,2]
[406280827,1771686215864,1208.0,7e-05,2]
[406280879,1771686607067,946.84,6.9e-05,2]
[406280880,1771686607824,946.84,6.9e-05,2]
[406280881,1771686608551,946.84,6.9e-05,2]
[406280882,1771686609315,946.84,6.9e-05,2]
[406280883,1771686610694,946.84,7e-05,2]
[406280884,1771686612135,946.84,7e-05,2]
[406280885,1771686612905,946.84,7e-05,2]
[406280886,1771686614018,946.84,7e-05,2]
[406280887,1771686619413,946.84,7e-05,2]
[406280891,1771686622891,946.84,7e-05,2]
[406280892,1771686623744,946.84,7e-05,2]
[406280909,1771686631643,-946.84,7.1e-05,2]
[406280911,1771686631653,-254.36246416,7.1e-05,2]
[406280913,1771686631664,-692.47753584,7.1e-05,2]
[406280914,1771686631673,-946.84,7.1e-05,2]
[406280915,1771686631682,-946.84,7.1e-05,2]
[406280916,1771686631693,-946.84,7.1e-05,2]
[406280917,1771686631703,-946.84,7.1e-05,2]
[406280918,1771686631712,-946.84,7.1e-05,2]
[406280919,1771686631721,-946.84,7.2e-05,2]
[406280920,1771686631730,-946.84,7.2e-05,2]
[406280921,1771686631739,-1200.0,0.00012622,2]
[406280922,1771686631749,-5000.0,0.00012623,2]
[406280923,1771686631758,-599.0,0.00012623,2]
[406280924,1771686631767,-3050.75319243,0.0001275,2]
[406281626,1771686644958,-462.92131736,7.128e-05,2]
[406281628,1771686644970,-1946.93003322,7.128e-05,2]
[406281630,1771686644983,-2590.14864942,7.128e-05,2]
[406281632,1771686644993,-946.84,7.2e-05,2]
[406281634,1771686645002,-946.84,7.2e-05,2]
[406281637,1771686645012,-946.84,7.2e-05,2]
[406281639,1771686645021,-946.84,7.2e-05,2]
[406281641,1771686645034,-946.84,7.2e-05,2]
[406281643,1771686645043,-946.84,7.3e-05,2]
[406281645,1771686645052,-946.84,7.3e-05,2]
[406281647,1771686645062,-946.84,7.3e-05,2]
[406281649,1771686645071,-946.84,7.3e-05,2]
[406281651,1771686645080,-946.84,7.3e-05,2]
[406281653,1771686645089,-946.84,7.3e-05,2]
[406281655,1771686645098,-946.84,7.3e-05,2]
[406281657,1771686645107,-946.84,7.4e-05,2]
[406281659,1771686645116,-946.84,7.4e-05,2]
[406281661,1771686645126,-1533.42335463,0.0001275,2]
[406281663,1771686645135,-300.0,0.00012877,2]
[406281665,1771686645145,-300.0,0.00012877,2]
[406281667,1771686645154,-300.0,0.00012877,2]
[406281669,1771686645164,-300.0,0.00012877,2]
[406281671,1771686645174,-300.0,0.00012878,2]
[406281673,1771686645185,-5000.0,0.00012879,2]
[406281675,1771686645194,-2380.18112489,0.00013273,2]
[406281676,1771686645203,-318.22367142,0.00013273,2]
[406281678,1771686645212,-500.0,0.00013699,2]
[406281680,1771686645221,-306.00348215,0.00013699,2]
[406281682,1771686645230,-420.0,0.00014124,2]
[406281684,1771686645239,-921.62811828,0.00014247,2]
[406281686,1771686645249,-467.0,0.00015491,2]
[406281689,1771686645259,-2636.6404271,0.00016802,2]
[406281690,1771686645268,-272.32249331,0.00017269,2]
[406281693,1771686645278,-254.38,0.000173,2]
[406281694,1771686645288,-230.83761279,0.000179,2]
[406281696,1771686645297,-229.42,0.0001799,3]
[406281698,1771686645307,-688.26,0.0001799,3]
[406281700,1771686645316,-500.0,0.00017997,2]
[406281702,1771686645325,-500.0,0.00017997,2]
[406281704,1771686645335,-500.0,0.00017997,2]
[406281706,1771686645344,-500.0,0.00017997,2]
[406281708,1771686645355,-505.45409477,0.00017999,2]
[406281710,1771686645365,-500.0,0.00017999,2]
[406281713,1771686645376,-500.0,0.00017999,2]
[406281715,1771686645386,-391.50977102,0.00017999,2]
[406281717,1771686645395,-500.0,0.00017999,2]
[406281719,1771686645404,-500.0,0.00017999,2]
[406281721,1771686645414,-500.0,0.00017999,2]
[406281723,1771686645424,-500.0,0.00017999,2]
[406281725,1771686645434,-500.0,0.00017999,2]
[406281727,1771686645443,-500.0,0.00017999,2]
[406281729,1771686645453,-500.0,0.00017999,2]
[406281731,1771686645462,-500.0,0.00017999,2]
[406281733,1771686645471,-500.0,0.00017999,2]
[406281735,1771686645481,-500.0,0.00017999,2]
[406281737,1771686645490,-500.0,0.00017999,2]
[406281739,1771686645499,-500.0,0.00017999,2]
[406281741,1771686645508,-500.0,0.00017999,2]
[406281743,1771686645518,-500.0,0.00017999,2]
[406281745,1771686645527,-500.0,0.00017999,2]
[406281747,1771686645537,-500.0,0.00017999,2]
[406281749,1771686645546,-500.0,0.00017999,2]
[406281751,1771686645555,-500.0,0.00017999,2]
[406281753,1771686645564,-500.0,0.00017999,2]
[406281755,1771686645573,-500.0,0.00017999,2]
[406281757,1771686645582,-500.0,0.00017999,2]
[406281759,1771686645592,-500.0,0.00017999,2]
[406281761,1771686645601,-500.0,0.00017999,2]
[406281763,1771686645610,-500.0,0.00017999,2]
[406281765,1771686645619,-500.0,0.00017999,2]
[406281767,1771686645630,-500.0,0.00017999,2]
[406281769,1771686645639,-493.02611509,0.00017999,2]
[406281771,1771686645648,-500.0,0.00017999,2]
[406281773,1771686645658,-500.0,0.00017999,2]
[406281775,1771686645667,-500.0,0.00017999,2]
[406281777,1771686645676,-500.0,0.00017999,2]
[406281779,1771686645685,-500.0,0.00017999,2]
[406281781,1771686645694,-500.0,0.00017999,2]
[406281783,1771686645703,-500.0,0.00017999,2]
[406281785,1771686645712,-500.0,0.00017999,2]
[406281787,1771686645721,-500.0,0.00017999,2]
[406281789,1771686645730,-500.0,0.00017999,2]
[406281791,1771686645739,-500.0,0.00017999,2]
[406281793,1771686645748,-500.0,0.00017999,2]
[406281795,1771686645757,-500.0,0.00017999,2]
[406281797,1771686645767,-500.0,0.00017999,2]
[406281799,1771686645775,-500.0,0.00017999,2]
[406281801,1771686645785,-500.0,0.00017999,2]
[406281803,1771686645794,-500.0,0.00017999,2]
[406281805,1771686645803,-500.0,0.00017999,2]
[406281807,1771686645813,-500.0,0.00017999,2]
[406281809,1771686645822,-500.0,0.00017999,2]
[406281811,1771686645832,-500.0,0.00017999,2]
[406281813,1771686645841,-500.0,0.00017999,2]
[406281815,1771686645851,-500.0,0.00017999,2]
[406281817,1771686645860,-500.0,0.00017999,2]
[406281819,1771686645871,-500.0,0.00017999,2]
[406281821,1771686645880,-500.0,0.00017999,2]
[406281823,1771686645890,-500.0,0.00017999,2]
[406281825,1771686645899,-500.0,0.00017999,2]
[406281827,1771686645909,-500.0,0.00017999,2]
[406281829,1771686645918,-500.0,0.00017999,2]
[406281831,1771686645927,-500.0,0.00017999,2]
[406281833,1771686645936,-500.0,0.00017999,2]
[406281835,1771686645946,-500.0,0.00017999,2]
[406281837,1771686645955,-500.0,0.00017999,2]
[406281839,1771686645964,-500.0,0.00017999,2]
[406281841,1771686645973,-500.0,0.00017999,2]
[406281843,1771686645983,-500.0,0.00017999,2]
[406281846,1771686645992,-500.0,0.00017999,2]
[406281848,1771686646001,-500.0,0.00017999,2]
[406281850,1771686646010,-500.0,0.00017999,2]
[406281852,1771686646019,-500.0,0.00017999,2]
[406281854,1771686646028,-500.0,0.00017999,2]
[406281856,1771686646037,-395.66616582,0.00017999,2]
[406281859,1771686646046,-500.0,0.00017999,2]
[406281861,1771686646066,-500.0,0.00017999,2]
[406281863,1771686646076,-500.0,0.00017999,2]
[406281864,1771686646085,-500.0,0.00017999,2]
[406281865,1771686646095,-500.0,0.00017999,2]
[406281866,1771686646104,-500.0,0.00017999,2]
[406281867,1771686646113,-500.0,0.00017999,2]
[406281868,1771686646122,-500.0,0.00017999,2]
[406281869,1771686646132,-500.0,0.00017999,2]
[406281870,1771686646141,-500.0,0.00017999,2]
[406281871,1771686646150,-292.37417576,0.00017999,2]
[406281872,1771686646159,-500.0,0.00017999,2]
[406281873,1771686646169,-500.0,0.00017999,2]
[406281875,1771686646182,-500.0,0.00017999,2]
[406281876,1771686646191,-500.0,0.00017999,2]
[406281877,1771686646201,-500.0,0.00017999,2]
[406281879,1771686646210,-500.0,0.00017999,2]
[406281882,1771686646221,-500.0,0.00017999,2]
[406281884,1771686646230,-500.0,0.00017999,2]
[406281886,1771686646240,-500.0,0.00017999,2]
[406281888,1771686646252,-500.0,0.00017999,2]
[406281889,1771686646261,-300.0,0.00017999,2]
[406281891,1771686646271,-500.0,0.00017999,2]
[406281893,1771686646281,-500.0,0.00017999,2]
[406281894,1771686646290,-500.0,0.00017999,2]
[406281895,1771686646300,-500.0,0.00017999,2]
[406281896,1771686646311,-449.30261151,0.00017999,2]
[406281897,1771686646320,-500.0,0.00017999,2]
[406281898,1771686646331,-500.0,0.00017999,2]
[406281899,1771686646340,-500.0,0.00017999,2]
[406281900,1771686646350,-500.0,0.00017999,2]
[406281901,1771686646360,-500.0,0.00017999,2]
[406281902,1771686646369,-500.0,0.00017999,2]
[406281903,1771686646379,-500.0,0.00017999,2]
[406281904,1771686646390,-500.0,0.00017999,2]
[406281905,1771686646401,-514.56444007,0.00017999,2]
[406281906,1771686646411,-500.0,0.00017999,2]
[406281907,1771686646420,-500.0,0.00017999,2]
[406281908,1771686646430,-500.0,0.00017999,2]
[406281909,1771686646439,-547.65593039,0.00017999,2]
[406281911,1771686646449,-500.0,0.00017999,2]
[406281913,1771686646458,-500.0,0.00017999,2]
[406281914,1771686646468,-629.59823509,0.00017999,2]
[406281915,1771686646477,-500.0,0.00017999,2]
[406281916,1771686646486,-500.0,0.00017999,2]
[406281917,1771686646496,-500.0,0.00017999,2]
[406281918,1771686646506,-500.0,0.00017999,2]
[406281919,1771686646515,-500.0,0.00017999,2]
[406281920,1771686646524,-500.0,0.00017999,2]
[406281922,1771686646533,-500.0,0.00017999,2]
[406281924,1771686646543,-500.0,0.00017999,2]
[406281926,1771686646552,-500.0,0.00017999,2]
[406281928,1771686646561,-500.0,0.00017999,2]
[406281930,1771686646570,-500.0,0.00017999,2]
[406281932,1771686646579,-500.0,0.00017999,2]
[406281934,1771686646588,-500.0,0.00017999,2]
[406281936,1771686646598,-500.0,0.00017999,2]
[406281938,1771686646607,-500.0,0.00017999,2]
[406281939,1771686646617,-500.0,0.00017999,2]
[406281940,1771686646626,-500.0,0.00017999,2]
[406281941,1771686646635,-348.09116447,0.00017999,2]
[406281942,1771686646645,-42095.94244883,0.00018,2]
[406281943,1771686646663,-39287.40148753,0.00018,2]
[406281944,1771686646677,-4999.97423919,0.00018,2]
[406281945,1771686646688,-887.88541547,0.00018,2]
[406281946,1771686646699,-1477.49725989,0.00018,2]
[406281947,1771686646715,-522.10750984,7.4e-05,2]
[406282083,1771686851305,5000.0,7.001e-05,2]
[406282087,1771686873106,5000.0,7.001e-05,2]
[406282088,1771686881782,5000.0,7.001e-05,2]
[406282093,1771686925671,1486.75001301,7.001e-05,2]
[406282143,1771687042063,5000.0,7.001e-05,2]
[406282197,1771687065296,5000.0,7.001e-05,2]
[406282208,1771687087643,5000.0,7.001e-05,2]
[406282223,1771687110690,5000.0,7.001e-05,2]
[406282224,1771687133287,1890.45045619,7.001e-05,2]
[406282594,1771687807638,212.33,6.9e-05,2]
[406282605,1771687824681,-169.58,7.1e-05,2]
[406282606,1771687824707,-414.8683787,7.1e-05,2]
[406282607,1771687824720,-105.1316213,7.1e-05,2]
[406282608,1771687824730,-64.4483787,7.101e-05,2]
[406282609,1771687824742,-85.5516213,7.101e-05,2]
[406282610,1771687824752,-434.4483787,7.398e-05,2]
[406282632,1771687831820,-305.668248,7.398e-05,2]
[406282634,1771687831832,-459.8833733,7.398e-05,2]
[406282636,1771687831841,-300.0,7.399e-05,2]
[406282638,1771687831851,-300.0,7.399e-05,2]
[406282640,1771687831860,-300.0,7.399e-05,2]
[406282642,1771687831869,-946.84,7.4e-05,2]
[406282644,1771687831878,-946.84,7.4e-05,2]
[406282645,1771687831887,-946.84,7.4e-05,2]
[406282647,1771687831896,-799.5966267,7.4e-05,2]
[406282716,1771687839965,-147.2433733,7.4e-05,2]
[406282719,1771687839974,-946.84,7.4e-05,2]
[406282721,1771687839983,-2776.49163603,7.4e-05,2]
[406282723,1771687839994,-25210.92323884,7.4e-05,2]
[406282725,1771687840003,-946.84,7.5e-05,2]
[406282727,1771687840012,-946.84,7.5e-05,2]
[406282729,1771687840021,-946.84,7.5e-05,2]
[406282731,1771687840029,-946.84,7.5e-05,2]
[406282732,1771687840039,-946.84,7.5e-05,2]
[406282734,1771687840048,-946.84,7.5e-05,2]
[406282736,1771687840057,-946.84,7.5e-05,2]
[406282738,1771687840066,-946.84,7.6e-05,2]
[406282740,1771687840075,-946.84,7.6e-05,2]
[406282742,1771687840084,-946.84,7.6e-05,2]
[406282744,1771687840093,-212.33,7.6e-05,2]
[406282745,1771687840103,-1680.0,8.138e-05,2]
[406282747,1771687840112,-245.0,8.139e-05,2]
[406282749,1771687840121,-193.0,8.139e-05,2]
[406282751,1771687840131,-420.0,8.139e-05,2]
[406282753,1771687840140,-2351.0,8.952e-05,2]
[406282755,1771687840150,-587.0,8.953e-05,2]
[406282757,1771687840159,-177.0,9.101e-05,2]
[406282759,1771687840168,-518.41077346,9.395e-05,2]
[406282760,1771687840176,-500.0,9.398e-05,2]
[406282762,1771687840185,-41435.707246,9.399e-05,2]
[406282764,1771687840195,-250.84133324,9.491e-05,2]
[406282766,1771687840203,-316.70727423,9.672e-05,2]
[406282768,1771687840213,-3292.0,9.847e-05,2]